bitfinex/quotes_ETHUSD_20250314
["timestamp","ask_amount","ask_price","bid_price","bid_amount"]
[1741945820040,20.413,1901.4,1901.3,0.1113788]
[1741945820274,20.413,1901.4,1901.2,0.11150566]
[1741945820458,29.64566992,1901.4,1901.0,5.26034]
[1741945820650,29.64566992,1901.4,1901.3,0.1113788]
[1741945820850,29.64566992,1901.4,1901.0,5.26034]
[1741945821072,29.64566992,1901.4,1901.3,0.11140795]
[1741945821277,34.90517992,1901.4,1900.9,11.29311]
[1741945821445,6.16950476,1901.3,1900.9,6.03261]
[1741945821644,6.16950476,1901.3,1901.0,5.37206856]
[1741945823239,3.0,1901.3,1901.0,5.37206856]
[1741945824180,3.0,1901.3,1901.0,0.11178856]
[1741945824383,5.25985,1901.2,1901.0,0.11178856]
[1741945824682,13.26211,1901.1,1901.0,0.11178856]
[1741945825073,13.26211,1901.1,1900.7,6.06145]
[1741945825272,13.26211,1901.1,1901.0,0.11108135]
[1741945825475,15.194496,1901.1,1900.7,10.52206]
[1741945825778,15.194496,1901.1,1900.7,10.52201]
[1741945825984,13.26211,1901.1,1900.8,0.11138617]
[1741945826287,8.002,1901.1,1900.9,5.26044]
[1741945826483,8.002,1901.1,1900.9,6.07094]
[1741945826675,8.002,1901.1,1901.0,5.37151236]
[1741945826875,8.002,1901.1,1901.0,0.11113236]
[1741945828589,8.002,1901.1,1901.0,5.37151236]
[1741945829369,5.002,1901.1,1901.0,5.37151236]
[1741945830392,5.002,1901.1,1901.0,0.11113236]
[1741945831489,3.0,1901.2,1901.0,0.11113236]
[1741945831691,8.002,1901.2,1901.0,0.11113236]
[1741945831987,8.002,1901.2,1901.0,5.37141236]
[1741945832992,8.0,1901.2,1901.1,5.26011]
[1741945833196,8.0,1901.2,1901.1,5.42031237]
[1741945833491,8.0,1901.2,1901.1,0.16020237]
[1741945834590,3.0,1901.2,1901.1,5.42031237]
[1741945834807,3.0,1901.2,1901.1,0.16020237]
[1741945836062,3.7973,1901.2,1900.9,5.2605]
[1741945836286,9.05713,1901.2,1901.1,0.1601878]
[1741945836467,11.28740492,1901.2,1901.0,0.16031727]
[1741945836672,5.26052,1901.0,1900.6,6.05171]
[1741945836888,14.05801,1900.9,1900.5,11.31356]
[1741945837112,14.05801,1900.9,1900.6,5.26147]
[1741945837275,8.7973,1900.9,1900.6,10.5228]
[1741945837475,8.7973,1900.9,1900.7,5.26116]
[1741945837660,8.7973,1900.9,1900.6,5.26133]
[1741945840906,14.05797,1900.9,1900.6,5.26133]
[1741945841476,3.0,1900.9,1900.6,1.13134]
[1741945841676,5.002,1900.9,1900.8,5.26094]
[1741945841877,8.002,1901.0,1900.8,6.07104]
[1741945842083,8.002,1901.0,1900.8,11.33178]
[1741945842375,8.002,1901.0,1900.8,5.26074]
[1741945842809,3.0,1901.0,1900.8,5.26074]
[1741945843202,3.0,1901.0,1900.9,5.26066]
[1741945843403,3.0,1901.0,1900.8,5.26074]
[1741945847331,3.0,1901.0,1900.9,5.26066]
[1741945848430,3.0,1901.0,1900.9,6.06606]
[1741945848721,3.88369142,1901.1,1901.0,5.26038]
[1741945848921,4.995,1901.2,1901.0,5.26038]
[1741945849127,4.995,1901.2,1901.0,5.42095235]
[1741945850026,4.995,1901.2,1901.0,5.42079235]
[1741945850632,4.995,1901.2,1901.0,0.16057235]
[1741945850829,5.8053,1901.2,1901.0,0.16057235]
[1741945851125,12.471716,1901.2,1900.8,5.2609]
[1741945851325,14.06523,1901.2,1901.1,0.1602534]
[1741945851532,5.26013,1901.1,1900.7,6.0613]
[1741945851893,5.26013,1901.1,1900.7,6.06115]
[1741945852426,5.26013,1901.1,1900.7,11.32224]
[1741945853521,3.0,1901.1,1900.8,5.26091]
[1741945853700,3.0,1901.1,1900.9,5.26058]
[1741945854099,3.0,1901.1,1900.8,5.26089]
[1741945854522,8.26014,1901.1,1900.8,5.26089]
[1741945854735,8.26014,1901.1,1900.7,6.06128]
[1741945857756,8.26014,1901.1,1900.7,11.32235]
[1741945858157,8.26014,1901.1,1900.7,6.06117]
[1741945858353,8.26014,1901.1,1900.7,11.3222]
[1741945858559,13.25314,1901.1,1900.7,11.3222]
[1741945858771,13.25314,1901.1,1900.7,6.06113]
[1741945859372,13.25314,1901.1,1900.7,11.32218]
[1741945859672,7.993,1901.1,1900.8,5.26092]
[1741945860373,13.25311,1901.1,1900.8,5.26092]
[1741945862354,13.25311,1901.1,1900.7,6.06113]
[1741945862673,13.25311,1901.1,1900.9,5.26056]
[1741945862674,7.993,1901.1,1900.9,5.26056]
[1741945863695,7.993,1901.1,1901.0,5.26038]
[1741945863895,7.993,1901.1,1901.0,5.42013745]
[1741945864189,3.0,1901.3,1901.0,10.68031745]
[1741945864350,7.993,1901.3,1901.0,10.68031745]
[1741945864551,7.993,1901.3,1901.0,5.41993745]
[1741945865186,4.993,1901.3,1901.0,10.68014745]
[1741945865358,4.993,1901.3,1901.0,5.41993745]
[1741945865851,10.25256,1901.3,1901.0,0.15975745]
[1741945866978,4.993,1901.2,1901.0,0.15975745]
[1741945867272,4.993,1901.2,1901.0,5.42004745]
[1741945868274,3.0,1901.3,1901.0,0.15975745]
[1741945868452,17.405,1901.5,1901.0,0.15975745]
[1741945868644,4.993,1901.4,1901.2,5.25971]
[1741945868845,4.993,1901.4,1901.3,0.15938364]
[1741945869466,17.405,1901.5,1901.3,5.41893364]
[1741945869648,4.993,1901.4,1901.3,5.41893364]
[1741945870048,4.993,1901.4,1901.3,0.15938364]
[1741945870555,4.993,1901.4,1901.3,5.41893364]
[1741945871361,17.405,1901.5,1901.3,5.41893364]
[1741945871554,4.993,1901.4,1901.3,5.41874364]
[1741945872344,17.405,1901.5,1901.3,10.67806364]
[1741945872567,22.397,1901.5,1901.3,5.41870364]
[1741945873289,3.0,1901.4,1901.3,10.67808364]
[1741945874256,3.0,1901.4,1901.3,5.41870364]
[1741945879095,2.98585165,1901.4,1901.3,5.41870364]
[1741945882778,2.98585165,1901.4,1901.3,6.561885]
[1741945883594,4.992,1901.8,1901.7,5.2584]
[1741945883793,7.992,1901.8,1901.7,5.41674165]
[1741945886785,3.0,1901.8,1901.7,5.41674165]
[1741945888871,22.394,1901.9,1901.8,5.25817]
[1741945889074,22.394,1901.9,1901.8,5.41597458]
[1741945890213,31.44519,1901.9,1901.8,0.15780458]
[1741945890515,34.43413922,1901.9,1901.4,5.25907]
[1741945890716,34.43413922,1901.9,1901.5,5.25889]
[1741945890908,37.87755314,1901.9,1901.5,5.4113502]
[1741945891215,43.13569314,1901.9,1901.5,5.4113502]
[1741945891515,43.13568314,1901.9,1901.5,5.4113502]
[1741945891676,37.87755314,1901.9,1901.5,5.4113502]
[1741945891875,43.13558314,1901.9,1901.5,5.4113502]
[1741945892614,37.87755314,1901.9,1901.5,5.4113502]
[1741945892816,41.76124456,1901.9,1901.5,5.4113502]
[1741945893016,47.01937456,1901.9,1901.5,5.4113502]
[1741945893601,5.25819,1901.8,1901.5,5.4113502]
[1741945894898,5.25819,1901.8,1901.5,0.1524602]
[1741945894899,3.0,1901.7,1901.5,0.1524602]
[1741945895306,3.0,1901.7,1901.4,5.25907]
[1741945895504,3.0,1901.7,1901.6,0.15246129]
[1741945895711,8.25845,1901.7,1901.5,0.15259069]
[1741945895927,8.25845,1901.7,1901.6,0.15246129]
[1741945896334,8.25845,1901.7,1901.3,5.25942]
[1741945896631,8.25845,1901.7,1901.3,5.865572]
[1741945896931,8.25845,1901.7,1901.4,0.15272011]
[1741945897136,6.06995,1901.6,1901.4,0.15272011]
[1741945897291,8.25845,1901.7,1901.4,6.07671]
[1741945897491,3.0,1901.7,1901.5,0.15261244]
[1741945897830,3.829,1901.7,1901.5,0.15261244]
[1741945899225,9.08747,1901.7,1901.5,0.15261244]
[1741945899431,3.0,1901.7,1901.5,0.15261244]
[1741945899833,3.0,1901.7,1901.5,5.41159244]
[1741945901038,3.0,1901.7,1901.5,5.41147244]
[1741945901221,3.0,1901.7,1901.5,5.95261968]
[1741945901423,12.93882064,1901.9,1901.6,5.25872]
[1741945901609,4.991,1901.8,1901.7,5.41056365]
[1741945902000,4.991,1901.8,1901.7,0.15235365]
[1741945902195,4.991,1901.8,1901.6,6.09013]
[1741945902531,4.991,1901.8,1901.7,0.15235365]
[1741945902904,4.991,1901.8,1901.6,5.25863]
[1741945903095,4.991,1901.8,1901.7,0.15233915]
[1741945903440,4.991,1901.8,1901.6,5.25863]
[1741945903643,4.991,1901.8,1901.7,0.15233915]
[1741945903828,4.991,1901.8,1901.6,5.25863]
[1741945904000,4.991,1901.8,1901.7,0.15233915]
[1741945904349,4.991,1901.8,1901.6,5.25863]
[1741945904521,4.991,1901.8,1901.7,0.15233915]
[1741945904895,4.991,1901.8,1901.6,5.25863]
[1741945905117,4.991,1901.8,1901.7,0.15233915]
[1741945905426,4.991,1901.8,1901.6,5.25863]
[1741945905596,4.991,1901.8,1901.7,0.15233915]
[1741945905797,4.991,1901.8,1901.6,5.25863]
[1741945906098,4.991,1901.8,1901.7,0.15233915]
[1741945906300,3.88369142,1901.9,1901.7,0.15233915]
[1741945906501,3.88369142,1901.9,1901.7,6.32521192]
[1741945906860,3.88369142,1901.9,1901.8,6.23307977]
[1741945907325,4.99,1902.0,1901.8,6.23307977]
[1741945908226,4.99,1902.0,1901.8,5.41037977]
[1741945908932,3.0,1901.9,1901.8,5.41037977]
[1741945910746,4.99,1902.0,1901.8,5.41037977]
[1741945911865,3.0,1902.0,1901.8,5.41037977]
[1741945912659,3.0,1902.0,1901.8,0.15220977]
[1741945914765,8.25765,1902.0,1901.8,0.15220977]
[1741945914928,3.0,1902.0,1901.8,0.15220977]
[1741945918078,3.0,1902.0,1901.7,5.25824]
[1741945918235,1.78914804,1901.9,1901.8,5.40848463]
[1741945918436,1.78914804,1901.9,1901.8,0.15032463]
[1741945918833,4.78914804,1902.0,1901.8,5.40849463]
[1741945919660,1.78914804,1901.9,1901.8,5.40849463]
[1741945919883,0.7643,1902.4,1901.9,0.8288]
[1741945920031,6.77914804,1902.3,1902.1,5.25711]
[1741945920348,9.77914804,1902.3,1902.2,0.14963187]
[1741945920751,6.77914804,1902.3,1902.1,5.25711]
[1741945921069,11.7431948,1902.3,1902.2,0.14963187]
[1741945921368,0.8184,1902.0,1901.7,5.25837]
[1741945921533,1.78914804,1901.9,1901.7,5.25837]
[1741945921731,1.78914804,1901.9,1901.8,0.15004778]
[1741945922163,1.78914804,1901.9,1901.7,5.25837]
[1741945922570,0.8184,1902.0,1901.8,0.15002604]
[1741945922782,1.78914804,1901.9,1901.8,0.15002604]
[1741945923238,1.78914804,1901.9,1901.6,5.2587]
[1741945923440,1.78914804,1901.8,1901.7,0.15028586]
[1741945923651,1.78914804,1901.8,1901.6,5.2587]
[1741945923847,1.78914804,1901.8,1901.7,0.15029311]
[1741945924054,1.78914804,1901.8,1901.5,11.27623]
[1741945924254,1.78914804,1901.8,1901.6,0.1504225]
[1741945924457,1.78072313,1901.8,1901.6,0.1504225]
[1741945925045,1.78914804,1901.7,1901.6,0.1504225]
[1741945925767,1.78914804,1901.8,1901.6,0.1504225]
[1741945926666,7.04759804,1901.7,1901.6,0.1504225]
[1741945926970,3.0,1901.6,1901.3,0.4934011]
[1741945927140,8.83757608,1901.4,1901.3,0.98673251]
[1741945927337,9.66337608,1901.4,1901.3,0.98673251]
[1741945927944,12.66337608,1901.4,1901.3,0.98673251]
[1741945928149,14.95452169,1901.4,1901.3,0.98673251]
[1741945928349,14.36099931,1901.4,1901.3,0.4934011]
[1741945928671,5.26001,1901.2,1900.8,5.26083]
[1741945928871,4.989,1901.1,1900.8,5.26083]
[1741945931878,4.989,1901.1,1900.8,10.52158]
[1741945932079,4.989,1901.1,1900.9,5.26065]
[1741945932782,4.989,1901.1,1900.8,6.389228]
[1741945933478,10.24914,1901.1,1900.8,6.389228]
[1741945933881,4.989,1901.1,1900.8,6.389108]
[1741945934782,4.989,1901.1,1900.9,5.26064]
[1741945934991,4.989,1901.1,1900.8,6.389268]
[1741945935292,4.989,1901.1,1900.8,11.650038]
[1741945935447,4.989,1901.1,1900.8,6.389108]
[1741945935657,4.989,1901.1,1900.8,6.389088]
[1741945936063,4.989,1901.1,1900.8,11.649908]
[1741945936262,4.989,1901.1,1900.8,11.649928]
[1741945936494,4.989,1901.1,1900.9,5.26063]
[1741945936680,3.0,1901.2,1901.0,6.01458]
[1741945936884,7.991,1901.2,1901.1,5.26011]
[1741945937067,3.0,1901.2,1901.1,5.26011]
[1741945937565,3.88369142,1901.3,1901.2,5.25983]
[1741945937907,17.399,1901.6,1901.5,5.259]
[1741945938064,4.991,1901.8,1901.7,6.07385]
[1741945938884,3.0,1901.8,1901.7,6.2193859]
[1741945945903,3.0,1901.8,1901.7,5.4039859]
[1741945946272,3.0,1901.8,1901.7,0.1455359]
[1741945946971,3.0,1901.8,1901.5,11.32276]
[1741945947185,3.0,1901.8,1901.7,0.1455359]
[1741945947384,3.0,1901.8,1901.6,5.40411529]
[1741945947601,3.0,1901.8,1901.7,0.1455359]
[1741945948002,3.0,1901.8,1901.6,5.25845]
[1741945948210,3.0,1901.8,1901.7,0.14484715]
[1741945948414,12.1471387,1901.8,1901.7,0.14484715]
[1741945948604,17.1361387,1901.8,1901.5,5.25898]
[1741945948805,16.2319437,1901.8,1901.7,0.13975654]
[1741945948999,16.2319437,1901.8,1901.6,0.13988593]
[1741945949314,16.2319437,1901.8,1901.4,5.25923]
[1741945949702,7.989,1901.8,1901.4,5.25917]
[1741945949902,7.989,1901.8,1901.6,5.25853]
[1741945950503,10.9737737,1901.8,1901.4,5.25928]
[1741945950688,16.2320437,1901.8,1901.4,10.51836]
[1741945950887,16.2320437,1901.8,1901.4,5.25908]
[1741945951214,16.2320437,1901.8,1901.4,10.5182]
[1741945951624,16.2320437,1901.8,1901.5,5.25899]
[1741945952418,16.2320437,1901.8,1901.4,5.2592]
[1741945952821,6.07983,1901.6,1901.2,6.311694]
[1741945953016,6.07983,1901.6,1901.2,10.51937]
[1741945953528,9.0646037,1901.6,1901.3,5.25954]
[1741945953682,3.8058737,1901.6,1901.4,0.14014475]
[1741945953883,3.8058737,1901.6,1901.3,10.51885]
[1741945954084,3.8058737,1901.6,1901.4,0.14014475]
[1741945954290,6.88369142,1901.7,1901.3,5.25939]
[1741945954490,6.88369142,1901.7,1901.4,0.14014475]
[1741945954723,6.88369142,1901.7,1901.3,6.311311]
[1741945955026,12.14226142,1901.7,1901.4,0.14035418]
[1741945955527,12.14226142,1901.7,1901.5,0.14022477]
[1741945955728,12.14226142,1901.7,1901.3,5.25939]
[1741945955930,12.14226142,1901.7,1901.4,0.14035418]
[1741945956230,12.14226142,1901.7,1901.3,5.25939]
[1741945956529,12.14226142,1901.7,1901.4,0.14035418]
[1741945956732,12.14226142,1901.7,1901.3,5.25939]
[1741945956895,12.14226142,1901.7,1901.4,0.14035418]
[1741945957225,12.14226142,1901.7,1901.3,5.25939]
[1741945957397,5.25872,1901.6,1901.5,0.14022477]
[1741945957728,5.25872,1901.6,1901.5,0.14019588]
[1741945957906,5.25872,1901.6,1901.2,10.51945]
[1741945958108,5.25872,1901.6,1901.3,0.14045472]
[1741945958304,12.14221142,1901.7,1901.3,5.39988472]
[1741945958611,12.14221142,1901.7,1901.3,10.65932472]
[1741945959031,12.14221142,1901.7,1901.3,5.39988472]
[1741945961112,12.14221142,1901.7,1901.3,10.65929472]
[1741945961835,4.989,1901.6,1901.3,5.39986472]
[1741945962734,4.989,1901.6,1901.4,5.25927]
[1741945962904,4.989,1901.6,1901.5,0.14043419]
[1741945967735,4.989,1901.6,1901.5,5.39943419]
[1741945967944,4.989,1901.6,1901.5,0.14043419]
[1741945969717,4.989,1901.6,1901.5,5.39943419]
[1741945970118,4.989,1901.6,1901.5,6.54212961]
[1741945970313,6.88369142,1901.7,1901.6,5.25872]
[1741945970517,3.0,1901.7,1901.6,5.39902479]
[1741945971054,3.0,1901.7,1901.6,0.14030479]
[1741945972533,3.0,1901.7,1901.6,5.39902479]
[1741945973329,3.0,1901.7,1901.6,6.46481027]
[1741945974213,3.0,1901.7,1901.6,7.27261027]
[1741945974615,4.989,1901.9,1901.7,5.25823]
[1741945974832,3.0,1901.8,1901.7,10.51647]
[1741945975341,3.0,1901.8,1901.7,5.25823]
[1741945975646,3.0,1901.8,1901.6,6.0665]
[1741945978440,3.0,1901.8,1901.6,5.2587]
[1741945980243,1.78953857,1901.7,1901.5,6.05202]
[1741945980446,1.78953857,1901.7,1901.5,11.916052]
[1741945981243,1.78953857,1901.7,1901.5,6.657222]
[1741945981436,1.78953857,1901.7,1901.5,5.25882]
[1741945982446,1.78953857,1901.7,1901.4,10.51838]
[1741945983744,1.78953857,1901.7,1901.5,0.14018141]
[1741945985149,1.78953857,1901.7,1901.5,5.39914141]
[1741945985649,1.78953857,1901.6,1901.5,0.14018141]
[1741945986456,1.78953857,1901.7,1901.5,0.14018141]
[1741945988356,7.04825857,1901.6,1901.5,0.14018141]
[1741945988560,7.83965857,1901.6,1901.2,5.25979]
[1741945988727,1.78953857,1901.3,1901.2,5.25979]
[1741945989361,1.78953857,1901.4,1901.3,5.25955]
[1741945989572,1.78953857,1901.5,1901.4,5.25923]
[1741945990041,1.78953857,1901.6,1901.4,5.25923]
[1741945990250,8.67322999,1901.7,1901.6,5.25872]
[1741945990455,1.78953857,1901.7,1901.6,5.25872]
[1741945990634,1.78953857,1901.7,1901.5,5.25899]
[1741945990972,1.78953857,1901.6,1901.5,5.25899]
[1741945991963,1.78953857,1901.6,1901.4,6.07937]
[1741945991964,1.78953857,1901.6,1901.4,5.2592]
[1741945992162,1.78953857,1901.5,1901.4,5.2592]
[1741945992455,2.98319186,1901.7,1901.4,5.2592]
[1741945995036,2.98319186,1901.7,1901.4,6.310882]
[1741945995346,3.40127654,1901.8,1901.5,5.25898]
[1741945995548,8.65945654,1901.8,1901.5,5.25898]
[1741945996063,8.65945654,1901.8,1901.4,5.25901]
[1741945998174,5.2585,1901.7,1901.3,5.25954]
[1741945998362,0.8238,1901.6,1901.3,5.25954]
[1741945998732,0.8238,1901.6,1901.4,0.14040473]
[1741945998939,0.8238,1901.6,1901.3,5.25954]
[1741945999137,0.8238,1901.6,1901.4,0.14040473]
[1741945999338,0.8238,1901.6,1901.3,5.25954]
[1741945999541,0.8238,1901.6,1901.4,0.14046248]
[1741945999868,0.8238,1901.6,1901.4,5.25921]
[1741946000068,0.8238,1901.6,1901.5,0.14033306]
[1741946001177,9.44437654,1901.8,1901.5,0.14033306]
[1741946001961,14.70274654,1901.8,1901.5,0.14033306]
[1741946002163,17.35860952,1901.8,1901.5,0.14033306]
[1741946004286,12.10023952,1901.8,1901.5,0.14033306]
[1741946006047,3.0,1901.8,1901.5,6.21005306]
[1741946007373,3.0,1901.8,1901.5,11.46890306]
[1741946007575,3.0,1901.8,1901.6,5.25868]
[1741946007745,3.0,1901.8,1901.7,5.39852427]
[1741946012022,6.88369142,1901.9,1901.8,5.25817]
[1741946012349,8.67288634,1901.9,1901.8,0.13985823]
[1741946013162,4.78919492,1901.9,1901.8,0.13985823]
[1741946013650,5.61469492,1901.9,1901.8,0.13985823]
[1741946013849,12.45851641,1901.9,1901.8,0.13985823]
[1741946014208,12.45851641,1901.9,1901.5,5.25888]
[1741946014512,1.78919492,1901.7,1901.5,5.25888]
[1741946014666,1.78919492,1901.7,1901.6,0.13996535]
[1741946014862,1.78919492,1901.7,1901.6,5.39868535]
[1741946015175,1.78919492,1901.8,1901.6,6.46423289]
[1741946015381,1.78919492,1901.8,1901.7,5.25845]
[1741946015567,1.78919492,1901.8,1901.7,5.39828596]
[1741946016406,1.78919492,1901.8,1901.7,0.13983596]
[1741946016797,1.78919492,1901.8,1901.7,5.25845]
[1741946016966,1.78919492,1901.8,1901.7,5.39828596]
[1741946022322,1.78919492,1901.8,1901.7,0.13983596]
[1741946022621,8.33299441,1901.8,1901.4,6.02461]
[1741946022914,1.78919492,1901.5,1901.3,5.25953]
[1741946023078,1.78919492,1901.4,1901.3,5.25953]
[1741946027614,4.40878984,1901.4,1901.0,0.39458052]
[1741946027802,1.78919492,1901.3,1901.1,5.25997]
[1741946028204,1.78919492,1901.2,1901.1,5.25997]
[1741946028712,1.78919492,1901.4,1901.2,6.01123]
[1741946028911,3.0,1901.5,1901.3,5.25945]
[1741946029110,1.78919492,1901.5,1901.4,5.25928]
[1741946029486,1.78919492,1901.5,1901.4,5.39478114]
[1741946030211,1.78919492,1901.6,1901.5,6.08313]
[1741946030515,1.78919492,1901.7,1901.6,5.25865]
[1741946030905,1.78919492,1901.7,1901.6,5.39384194]
[1741946031407,2.56809492,1901.7,1901.6,0.13519194]
[1741946031611,3.0,1901.6,1901.4,5.25918]
[1741946031812,1.78919492,1901.5,1901.4,5.25918]
[1741946032213,4.78919492,1901.6,1901.4,6.08118]
[1741946032410,4.78919492,1901.6,1901.5,5.259]
[1741946033604,4.78919492,1901.6,1901.4,6.08118]
[1741946033924,1.78919492,1901.5,1901.4,5.25918]
[1741946036327,1.78919492,1901.5,1901.4,6.311053]
[1741946036524,3.0,1901.6,1901.5,5.259]
[1741946036725,7.987,1901.8,1901.6,5.25872]
[1741946037023,0.7593,1901.6,1901.1,0.803]
[1741946037328,3.7593,1901.6,1901.3,10.51881]
[1741946037625,3.0,1901.6,1901.5,5.259]
[1741946038029,4.78919492,1901.6,1901.5,5.259]
[1741946038625,4.78919492,1901.6,1901.4,5.25927]
[1741946038818,1.78919492,1901.5,1901.4,5.25927]
[1741946040332,3.0,1901.6,1901.5,5.259]
[1741946041428,3.0,1901.6,1901.5,1.051828]
[1741946041626,3.0,1901.6,1901.4,5.25928]
[1741946041827,3.7543,1901.6,1901.3,5.25943]
[1741946042064,9.01303,1901.6,1901.3,5.25943]
[1741946042548,2.98325295,1901.5,1901.2,5.2598]
[1741946042863,3.0,1901.2,1900.9,5.26062]
[1741946043003,3.0,1901.2,1901.0,5.26038]
[1741946043207,3.0,1901.2,1900.9,5.26044]
[1741946043409,3.0,1901.2,1901.0,5.26038]
[1741946043847,3.0,1901.2,1901.1,0.13580672]
[1741946044205,3.0,1901.2,1901.1,6.75153539]
[1741946045230,8.87069142,1901.4,1901.2,5.25978]
[1741946045821,11.87069142,1901.4,1901.3,0.13579972]
[1741946046831,11.87069142,1901.4,1901.1,6.07603]
[1741946047335,11.87069142,1901.4,1901.2,0.13592916]
[1741946047706,11.87069142,1901.4,1901.1,6.07603]
[1741946047903,11.87069142,1901.4,1901.3,0.13579972]
[1741946048107,11.87069142,1901.4,1901.2,0.13592916]
[1741946048330,11.87069142,1901.4,1901.2,5.2598]
[1741946048638,11.87069142,1901.4,1901.3,0.13579972]
[1741946050235,11.87069142,1901.4,1901.1,5.26003]
[1741946050436,2.98325295,1901.3,1901.1,5.26003]
[1741946050637,3.7825,1901.2,1901.0,5.26037]
[1741946050839,3.7225,1901.2,1900.9,5.26057]
[1741946051411,3.7225,1901.2,1901.0,5.26032]
[1741946051601,3.7225,1901.2,1900.9,5.26058]
[1741946052234,3.0,1901.2,1901.1,5.26011]
[1741946053029,3.0,1901.2,1901.0,5.26038]
[1741946053240,3.0,1901.2,1901.0,10.52057]
[1741946053440,3.0,1901.2,1901.1,5.26011]
[1741946053810,8.87069142,1901.4,1901.2,5.25983]
[1741946054128,3.88369142,1901.4,1901.2,6.07449]
[1741946054325,3.88369142,1901.4,1900.9,5.26052]
[1741946054326,3.79165295,1901.3,1900.9,5.26052]
[1741946054530,2.98325295,1901.1,1900.8,5.26093]
[1741946054725,8.77865295,1901.1,1900.8,5.26093]
[1741946054931,8.77865295,1901.1,1900.8,10.52171]
[1741946055328,7.97025295,1901.1,1900.9,5.26062]
[1741946055516,7.987,1901.1,1901.0,5.26038]
[1741946056246,4.987,1901.1,1901.0,5.26038]
[1741946057441,8.78685295,1901.1,1900.8,5.26091]
[1741946057647,9.96553825,1901.1,1900.8,5.26091]
[1741946059048,9.96553825,1901.1,1900.9,0.13180736]
[1741946059340,9.96553825,1901.1,1900.9,0.11771366]
[1741946059550,4.987,1901.1,1900.9,5.37815366]
[1741946059744,4.987,1901.1,1900.9,5.26058]
[1741946059913,4.987,1901.1,1901.0,0.13117452]
[1741946061656,4.987,1901.1,1901.0,0.13119604]
[1741946062336,4.987,1901.1,1900.8,5.26093]
[1741946062520,4.987,1901.1,1900.9,0.13132553]
[1741946062725,12.4732443,1901.1,1900.9,0.13132553]
[1741946062934,12.4732443,1901.1,1901.0,0.13121039]
[1741946063134,15.4732443,1901.1,1900.7,5.2612]
[1741946063349,15.4732443,1901.1,1900.8,0.13146938]
[1741946065163,12.4732443,1901.1,1900.8,5.39240938]
[1741946065371,4.987,1901.1,1900.8,5.39240938]
[1741946065676,2.98325295,1901.0,1900.8,0.13146938]
[1741946065840,6.06556,1900.9,1900.8,0.13146938]
[1741946066162,6.06556,1900.9,1900.4,6.05724]
[1741946066352,8.24420295,1900.8,1900.5,0.13185796]
[1741946066738,5.26141,1900.7,1900.5,0.13185796]
[1741946066942,6.07311,1900.7,1900.3,5.26231]
[1741946067142,6.07311,1900.7,1900.3,10.52462]
[1741946067343,6.07302,1900.7,1900.4,0.13198751]
[1741946067541,6.07302,1900.7,1900.3,5.26226]
[1741946067742,6.07302,1900.7,1900.4,0.13198751]
[1741946067962,11.06002,1900.7,1900.3,5.26215]
[1741946068163,5.7987,1900.7,1900.4,5.26195]
[1741946068370,5.7987,1900.7,1900.4,5.39415733]
[1741946069062,4.987,1900.7,1900.5,5.26177]
[1741946069266,4.987,1900.7,1900.5,6.07387]
[1741946069580,4.987,1900.7,1900.6,0.13200824]
[1741946070165,12.69289142,1900.7,1900.6,0.13200824]
[1741946070466,8.26167,1900.6,1900.2,5.2625]
[1741946070643,2.98325295,1900.5,1900.2,5.2625]
[1741946070843,2.98325295,1900.5,1900.3,0.12347802]
[1741946071665,2.98325295,1900.5,1900.2,5.2625]
[1741946072556,2.98325295,1900.5,1900.3,0.12356384]
[1741946072731,2.98325295,1900.5,1900.2,5.26247]
[1741946073067,2.98325295,1900.5,1900.3,0.12356384]
[1741946074375,8.26205,1900.4,1900.3,0.12356384]
[1741946074542,9.03615,1900.4,1900.3,0.12356384]
[1741946074742,5.26236,1900.3,1899.9,5.26336]
[1741946074943,18.49619295,1900.3,1899.9,5.26336]
[1741946075170,3.0,1900.1,1899.9,5.26336]
[1741946075939,3.0,1900.1,1899.8,11.32087]
[1741946076470,3.0,1900.1,1899.9,5.26339]
[1741946077541,3.0,1900.1,1899.9,10.52656]
[1741946077752,3.0,1900.1,1900.0,5.26315]
[1741946081467,3.0,1900.1,1899.9,10.52651]
[1741946084789,3.0,1900.2,1900.1,5.26288]
[1741946085580,3.0,1900.2,1900.0,5.26289]
[1741946086879,3.0,1900.2,1900.1,5.26288]
[1741946088476,3.0,1900.2,1900.0,5.26289]
[1741946088670,3.0,1900.2,1899.9,5.26341]
[1741946088875,4.5539,1900.2,1900.1,0.1200267]
[1741946089055,4.5539,1900.2,1900.0,0.12016344]
[1741946090190,9.8165,1900.2,1900.0,0.12016344]
[1741946090887,9.8165,1900.2,1899.8,5.26356]
[1741946091063,3.0,1900.0,1899.8,5.26356]
[1741946091659,3.0,1899.8,1899.5,5.2644]
[1741946093191,3.0,1899.8,1899.6,5.26424]
[1741946093386,3.0,1899.8,1899.5,5.2645]
[1741946093593,8.26371,1899.8,1899.4,6.02719]
[1741946093763,10.4922443,1899.8,1899.4,6.02719]
[1741946093959,10.4922443,1899.8,1899.4,11.29185]
[1741946094160,10.4922443,1899.8,1899.5,5.26452]
[1741946094489,5.2285343,1899.8,1899.5,5.26452]
[1741946094871,10.4922743,1899.8,1899.5,5.26452]
[1741946095071,10.4922743,1899.8,1899.4,6.02705]
[1741946095584,15.7562243,1899.8,1899.4,5.26465]
[1741946095782,10.4922743,1899.8,1899.4,5.26465]
[1741946095963,10.4922743,1899.8,1899.5,5.26452]
[1741946096164,5.2285343,1899.8,1899.5,5.26452]
[1741946096466,3.0,1899.8,1899.6,5.26399]
[1741946096678,3.0,1900.0,1899.7,5.26378]
[1741946096858,4.989,1899.8,1899.7,5.26378]
[1741946097064,7.989,1900.0,1899.8,11.33769]
[1741946097291,7.989,1900.0,1899.9,5.26343]
[1741946097660,0.7641,1900.4,1899.9,0.58672757]